Cogmind - Beta 10.2 *** ADVENTURER MODE // 2021.06.25 @ 20:56:31 Player: DanielJ Result: Self-destructed Performance ------------- Evolutions (3) 1500 Regions Visited (7) 1400 Robots Destroyed (63) 315 Value Destroyed (2236) 2236 Prototype IDs (3) 60 Alien Tech Used (0) 0 Bonus (785) 785 TOTAL SCORE: 6296 Bonus ------- High Alert Combat Kills 85 Entered Garrisons 200 Used RIF Installer 500 Cogmind --------- Core Integrity 393/700 Matter 285/300 Energy 100/100 System Corruption 2% Temperature Cool (0) Movement Core (50) Location -7/Garrison Parts ------- > --- POWER (2) -------- (None) > --- PROPULSION (4) --- (None) > --- UTILITY (3) ------ Improved Heat Sink > --- WEAPON (4) ------- (None) > --- INVENTORY (4) ---- (None) Peak State ------------ > --- POWER ------------ Improved Deuterium Engine Improved Deuterium Engine > --- PROPULSION ------- Carbon-fiber Leg Improved Carbon-fiber Leg Improved Carbon-fiber Leg Improved Carbon-fiber Leg > --- UTILITY ---------- Improved Cooling System Small Storage Unit Particle Charger > --- WEAPON ----------- Arc Projector Arc Projector Arc Projector Gauss Rifle > --- INVENTORY -------- Carbon-fiber Leg Titanium Leg Improved Carbon-fiber Leg Makeshift Leg Hardlight Generator Gauss Rifle [Rating: 49] Favorites ----------- Power Ion Engine Engine Ion Engine Power Core Fission Core Propulsion Aluminum Leg Leg Aluminum Leg Hover Unit Hover Unit Flight Unit Improved Flight Unit Utility Small Storage Unit Device Heat Sink Storage Small Storage Unit Processor Seismic Analyzer Weapon EM Pulse Gun Energy Gun EM Pulse Gun Energy Cannon Improved EM Pulse Cannon Ballistic Gun Heavy Assault Rifle Ballistic Cannon Bore Cannon Launcher Rocket Launcher Build | -11 -10 -10 -10 -9 -8 -7 -7 ------- Run | Scr Mat Min Exi Min Mat Fac Gar Slots Evolved 6 | . . . . . 4 2 . Power 1 | . . . . . 1 . . Propulsion 2 | . . . . . 1 1 . Utility 1 | . . . . . . 1 . Weapon 2 | . . . . . 2 . . Parts Attached 85 | 6 3 6 2 9 24 3 32 Power 13 | 1 . 1 . 1 2 . 8 Engine 8 | 1 . . . . 1 . 6 Core 5 | . . 1 . 1 1 . 2 Reactor . | . . . . . . . . Propulsion 29 | 2 . 2 . 4 6 2 13 Treads . | . . . . . . . . Leg 27 | 2 . 2 . 4 5 2 12 Wheel . | . . . . . . . . Hover 1 | . . . . . . . 1 Flight 1 | . . . . . 1 . . Utility 15 | 1 1 1 . . 5 1 6 Device 13 | . 1 1 . . 4 1 6 Storage 1 | 1 . . . . . . . Processor 1 | . . . . . 1 . . Hackware . | . . . . . . . . Protection . | . . . . . . . . Artifact . | . . . . . . . . Weapon 28 | 2 2 2 2 4 11 . 5 Energy Gun 15 | 1 2 1 . 1 8 . 2 Energy Cannon 3 | . . . . 1 2 . . Ballistic Gun 5 | 1 . . 1 . . . 3 Ballistic Cannon 2 | . . . . 1 1 . . Launcher 3 | . . 1 1 1 . . . Special Weapon . | . . . . . . . . Impact Weapon . | . . . . . . . . Slashing Weapon . | . . . . . . . . Piercing Weapon . | . . . . . . . . Special Melee Weapon . | . . . . . . . . Unidentified Prototypes 1 | . . . . . 1 . . Parts Lost 30 | . . 1 . 3 2 . 24 Power 3 | . . . . . 1 . 2 Propulsion 9 | . . . . 1 . . 8 Utility 6 | . . . . 1 . . 5 Weapon 12 | . . 1 . 1 1 . 9 Highest Loss Streak 17 | . . 1 . 2 1 . 17 Average Slot Usage (%) 93 | . 96 99 100 84 89 92 85 Engine 6 | . 14 13 . . 6 . 8 Core 6 | . . . 14 13 8 7 3 Leg 27 | . 28 28 28 27 26 30 27 Device 10 | . 10 14 14 . 4 15 12 Storage 11 | . 14 14 14 14 9 7 6 Energy Gun 16 | . 18 20 8 2 23 30 17 Energy Cannon 1 | . . . . 1 7 . . Ballistic Gun 6 | . 9 . 13 12 . . 5 Ballistic Cannon 1 | . . . . 11 2 . . Launcher 2 | . . 7 5 . . . . Naked Turns . | . . . . . . . . Heaviest Build 51 | 12 14 16 17 30 48 31 51 Greatest Support 72 | 20 20 20 20 30 47 63 72 Greatest Overweight (x) 12 | 2 . . . 1 12 . 1 Average Overweight (x) . | . . . . . . . . Largest Inventory Capacity 6 | 6 6 6 6 6 6 6 6 Average Capacity 5 | 5 6 6 6 6 6 6 5 Most Carried 6 | 2 6 6 6 6 6 6 6 Average Carried 5 | 1 5 5 5 5 5 4 5 Final Capacity 6 | 6 6 6 6 6 6 6 4 Final Carried 6 | 2 6 5 6 6 6 6 . Class Distribution -------------------- 43% | Mutant 26% | Scavenger-Mutant 23% | Scavenger-Gunner 6% | Scavenger-Skirmisher Dominant Class ---------------- Mutant | -10/Materials Mutant | -10/Mines Scavenger-Mutant | -10/Exiles Mutant | -9/Mines Scavenger-Gunner | -8/Materials Scavenger-Skirmisher | -7/Factory Scavenger-Gunner | -7/Garrison Resources | -11 -10 -10 -10 -9 -8 -7 -7 ----------- Run | Scr Mat Min Exi Min Mat Fac Gar Matter Collected 1440 | 37 28 304 . 364 256 . 451 Remotely . | . . . . . . . . Salvage Created 2368 | . 28 407 . 363 584 . 986 Parts 151 | . 2 37 . 21 36 . 55 Haulers Intercepted . | . . . . . . . . Recyclers Shooed 1 | . . . . 1 . . . Parts Field Recycled . | . . . . . . . . Retrieved Matter . | . . . . . . . . Parts Self-Destructed . | . . . . . . . . Prevented . | . . . . . . . . Kills | -11 -10 -10 -10 -9 -8 -7 -7 ------- Run | Scr Mat Min Exi Min Mat Fac Gar Combat Hostiles Destroyed 62 | . . 14 . 16 12 . 20 Guns 48 | . . 11 . 8 9 . 20 Cannons 6 | . . . . 3 3 . . AOE 8 | . . 3 . 5 . . . Classes Destroyed 12 | . 1 4 . 3 1 . 3 Worker 1 | . . . . 1 . . . Tunneler 2 | . . 1 . 1 . . . Recycler 2 | . . . . 2 . . . Drone 1 | . . . . . . . 1 Watcher 4 | . 1 . . . 3 . . Swarmer 26 | . . 9 . 8 3 . 6 Grunt 13 | . . 4 . 1 5 . 3 Brawler 5 | . . . . . . . 5 Sentry 4 | . . 1 . . 3 . . Specialist 2 | . . . . . . . 2 Hunter 4 | . . . . . 1 . 3 Assembled 7 | . . . . 7 . . . Best Kill Streak 7 | . 1 3 . 7 3 . 6 Combat Bots Only 7 | . . 3 . 7 3 . 6 Max Kills in Single Turn 4 | . 1 1 . 4 1 . 1 Gunslinging . | . . . . . . . . Exploded 4 | . . 1 . 4 . . . Melee . | . . . . . . . . Uniques/NPCs Destroyed . | . . . . . . . . Combat | -11 -10 -10 -10 -9 -8 -7 -7 -------- Run | Scr Mat Min Exi Min Mat Fac Gar Damage Taken 3750 | . 20 398 . 359 523 . 2450 Core 560 | . . 42 . 45 166 . 307 Absorbed by Shields 205 | . . . . . . . 205 Core Remaining (%) 78 | 100 . . . 65 69 . . Volleys Fired 175 | . 2 40 2 36 29 . 66 Largest 4 | . 2 2 1 2 4 . 4 Hottest 272 | . 70 80 33 126 272 . 230 Shots Fired 403 | . 4 59 2 62 90 . 186 Gun 348 | . 4 57 . 35 66 . 186 Cannon 49 | . . . . 25 24 . . Launcher 6 | . . 2 2 2 . . . Special . | . . . . . . . . Kinetic 109 | . 2 . . 49 5 . 53 Thermal 72 | . 2 . . . 62 . 8 Explosive 6 | . . 2 2 2 . . . Electromagnetic 216 | . . 57 . 11 23 . 125 Robot Hit Streak 18 | . 1 11 . 18 13 . 14 Robot Miss Streak 6 | . 1 3 . 6 3 . 2 Penetration Max 1 | . . . . 1 . . 1 Secondary Targets 11 | . . 2 . 2 . . 7 Max Gunslinging Chain 1 | . . 1 . 1 . . 1 Shots Hit Robots 275 | . 2 43 . 38 59 . 133 Core Hits 125 | . 1 22 . 31 23 . 48 Critical Hits 5 | . . . . 4 . . 1 Critical Kills 1 | . . . . 1 . . . Critical Parts Destroyed 4 | . . . . 3 . . 1 Melee Attacks . | . . . . . . . . Impact . | . . . . . . . . Slashing . | . . . . . . . . Piercing . | . . . . . . . . Sneak Attacks . | . . . . . . . . Combat Hostiles . | . . . . . . . . Follow-up Attacks . | . . . . . . . . Damage Inflicted 4396 | . 25 683 . 930 914 . 1844 Guns 3290 | . 25 491 . 351 681 . 1742 Cannons 565 | . . . . 332 233 . . Explosions 541 | . . 192 . 247 . . 102 Melee . | . . . . . . . . Ramming . | . . . . . . . . Kinetic 1207 | . . . . 525 . . 682 Thermal 987 | . 25 89 . 31 673 . 169 Explosive 319 | . . 103 . 216 . . . Electromagnetic 1883 | . . 491 . 158 241 . 993 Impact . | . . . . . . . . Slashing . | . . . . . . . . Piercing . | . . . . . . . . Highest Corruption 2 | . . . . . . . 2 Average Corruption 2 | . . . . . . . 2 Corruption Purged . | . . . . . . . . Effects 9 | . . . . . . . 9 Message Errors 3 | . . . . . . . 3 Heat Flow Errors 1 | . . . . . . . 1 Energy Discharges 2 | . . . . . . . 2 Targeting Errors 1 | . . . . . . . 1 Weapon Failures 2 | . . . . . . . 2 Overload Shots . | . . . . . . . . Overflow Damage 29 | . . . . 16 . . 13 Projectiles 16 | . . . . 16 . . . Explosions 13 | . . . . . . . 13 Melee . | . . . . . . . . Knockbacks 3 | . . . . 3 . . . Impact . | . . . . . . . . Kinetic 3 | . . . . 3 . . . Secondary . | . . . . . . . . Self-Inflicted Damage 76 | . . . . . . . 76 Shots 1 | . . . . . . . 1 Rammed . | . . . . . . . . Targets Rammed . | . . . . . . . . Kicked . | . . . . . . . . Crushed . | . . . . . . . . Highest Temperature 572 | . 40 45 . 360 572 . 402 Average Temperature 168 | . 20 16 . 102 213 . 158 Received Heat Transfer 1050 | . . 150 . 6 243 . 651 Effects 33 | . . . . 1 27 . 5 Shutdowns 11 | . . . . . 8 . 3 Energy Bleed 3 | . . . . . 2 . 1 Interference 10 | . . . . 1 9 . . Short Circuit 2 | . . . . . 1 . 1 Damage (major) 6 | . . . . . 6 . . Damage (core) 1 | . . . . . 1 . . Siege Activations . | . . . . . . . . Robots Corrupted . | . . . . . . . . Combat Hostiles . | . . . . . . . . Parts Fried 8 | . . 1 . . . . 7 Impact Corruptions . | . . . . . . . . Robots Melted . | . . . . . . . . Combat Hostiles . | . . . . . . . . Parts Melted 4 | . 1 . . . 3 . . Heat Transferred 1878 | . 74 100 . 50 1406 . 248 Parts Sabotaged . | . . . . . . . . Parts Stolen . | . . . . . . . . Parts Stripped . | . . . . . . . . Power Chain Reactions 4 | . . 2 . 1 . . 1 Missiles Intercepted . | . . . . . . . . Alert | -11 -10 -10 -10 -9 -8 -7 -7 ------- Run | Scr Mat Min Exi Min Mat Fac Gar Peak Influence 480 | . 50 299 . 135 251 39 480 Initial 27 | . . 4 . . 24 27 23 Average 109 | . 20 103 . 70 92 28 276 Maximum Alert Level 2 | . . 1 . . 1 . 2 Low Security (%) 83 | 100 100 84 . 100 90 100 40 Level 1 10 | . . 15 . . 9 . 23 Level 2 6 | . . . . . . . 36 Level 3 . | . . . . . . . . Level 4 . | . . . . . . . . Level 5 . | . . . . . . . . High Security . | . . . . . . . . Max Security . | . . . . . . . . Squads Dispatched 2 | . . . . 1 1 . . Investigation 1 | . . . . . 1 . . Extermination . | . . . . . . . . Reinforcement 1 | . . . . 1 . . . Assault . | . . . . . . . . Garrison . | . . . . . . . . Intercept . | . . . . . . . . Construction Impeded 1 | . . . . 1 . . . Haulers Reinforced . | . . . . . . . . Stealth | -11 -10 -10 -10 -9 -8 -7 -7 --------- Run | Scr Mat Min Exi Min Mat Fac Gar Distress Signals . | . . . . . . . . Communications Jammed . | . . . . . . . . Distress Signals . | . . . . . . . . Times Spotted 96 | . 1 16 . 16 25 . 38 Peak Tracking Total 15 | . 1 3 . 7 4 . 15 Tactical Retreats 4 | . . 1 . . . . 3 Traps | -11 -10 -10 -10 -9 -8 -7 -7 ------- Run | Scr Mat Min Exi Min Mat Fac Gar Traps Triggered 4 | . 1 . . . . . 3 Indirectly . | . . . . . . . . Trap Hack Attempts . | . . . . . . . . Triggered . | . . . . . . . . Disarmed . | . . . . . . . . Reprogrammed . | . . . . . . . . Reused . | . . . . . . . . Traps Extracted . | . . . . . . . . Installed . | . . . . . . . . Triggered 1 | . . . . 1 . . . Machines | -11 -10 -10 -10 -9 -8 -7 -7 ---------- Run | Scr Mat Min Exi Min Mat Fac Gar Machines Disabled 7 | . . . 2 . 2 . 3 Max in Single Turn 2 | . . . 2 . 1 . 2 Garrison Relay 1 | . . . . . . . 1 Phase Generator 1 | . . . . . . . 1 Machines Sabotaged . | . . . . . . . . Garrisons Compromised . | . . . . . . . . Overloaded Fab Kills . | . . . . . . . . Fab Network Shutdowns . | . . . . . . . . Hacking | -11 -10 -10 -10 -9 -8 -7 -7 --------- Run | Scr Mat Min Exi Min Mat Fac Gar Machines Accessed 15 | . 3 . 4 1 6 1 . Terminals 4 | . 2 . . . 2 . . Fabricators . | . . . . . . . . Repair Stations 1 | . . . . . 1 . . Recycling Units 2 | . 1 . . . 1 . . Scanalyzers 2 | . . . . . 2 . . Garrison Access 1 | . . . . . . 1 . Total Hacks 26 | . 4 . 4 1 16 1 . Successful 23 | . 4 . 4 1 13 1 . Failed 3 | . . . . . 3 . . Catastrophic 1 | . . . . . 1 . . Database Lockouts . | . . . . . . . . Manual . | . . . . . . . . Terminals 10 | . 3 . . . 7 . . Fabricators . | . . . . . . . . Repair Stations 2 | . . . . . 2 . . Recycling Units 2 | . 1 . . . 1 . . Scanalyzers 6 | . . . . . 6 . . Garrison Access 1 | . . . . . . 1 . Terminal Hacks 12 | . 3 . 4 1 4 . . Record 5 | . . . 4 . 1 . . Robot Analysis 1 | . 1 . . . . . . Prototype ID Bank 1 | . 1 . . . . . . Open Door 1 | . . . . 1 . . . Locate Traps 1 | . . . . . 1 . . Transport Status 1 | . 1 . . . . . . Registered Components 1 | . . . . . 1 . . Registered Prototypes 1 | . . . . . 1 . . Fabricator Hacks . | . . . . . . . . Repair Station Hacks 2 | . . . . . 2 . . Scan Component 1 | . . . . . 1 . . Repair 1 | . . . . . 1 . . Recycling Unit Hacks 2 | . 1 . . . 1 . . Report Inventory 2 | . 1 . . . 1 . . Scanalyzer 6 | . . . . . 6 . . Insert Component 3 | . . . . . 3 . . Analyze 3 | . . . . . 3 . . Garrison Access Hacks 1 | . . . . . . 1 . Unlock Access 1 | . . . . . . 1 . Unauthorized Hacks . | . . . . . . . . Terminals . | . . . . . . . . Fabricators . | . . . . . . . . Repair Stations . | . . . . . . . . Recycling Units . | . . . . . . . . Scanalyzers . | . . . . . . . . Garrison Access . | . . . . . . . . Data Cores Recovered . | . . . . . . . . Used . | . . . . . . . . Hacking Detections 3 | . 1 . . . 2 . . Full Trace Events 1 | . . . . . 1 . . Feedback Events . | . . . . . . . . Feedback Blocked . | . . . . . . . . Robot Schematics Acquired . | . . . . . . . . Robots Built . | . . . . . . . . Matter . | . . . . . . . . Time . | . . . . . . . . Total Robot Build Rating . | . . . . . . . . Part Schematics Acquired 3 | . . . . . 3 . . Parts Built . | . . . . . . . . Matter . | . . . . . . . . Time . | . . . . . . . . Total Part Build Rating . | . . . . . . . . Parts Repaired 1 | . . . . . 1 . . Time 50 | . . . . . 50 . . Parts Recycled . | . . . . . . . . Recycled Matter . | . . . . . . . . Retrieved Matter . | . . . . . . . . Retrieved Components . | . . . . . . . . Parts Scanalyzed 3 | . . . . . 3 . . Part Schematics Acquired 3 | . . . . . 3 . . Parts Damaged 1 | . . . . . 1 . . Bothacking | -11 -10 -10 -10 -9 -8 -7 -7 ------------ Run | Scr Mat Min Exi Min Mat Fac Gar Used RIF Installer 1 | . . . . . . . 1 Robots Hacked . | . . . . . . . . Non-combat . | . . . . . . . . Combat . | . . . . . . . . Robot Hacks Applied . | . . . . . . . . Relay Couplers Released 4 | . . . . . . . 4 Machine Destruction 4 | . . . . . . . 4 Robots Rewired . | . . . . . . . . Allies Hacked . | . . . . . . . . Hacks Repelled . | . . . . . . . . Allies | -11 -10 -10 -10 -9 -8 -7 -7 -------- Run | Scr Mat Min Exi Min Mat Fac Gar Total Allies 2 | . . . . 2 . . . Largest Group 2 | . . . . 2 1 . . Highest-Rated Group 46 | . . . . 46 15 . . Highest-Rated Ally 31 | . . . . 31 15 . . Total Orders . | . . . . . . . . Ally Attacks 4 | . . . . 4 . . . Total Damage 44 | . . . . 44 . . . Kills . | . . . . . . . . Allies Corrupted . | . . . . . . . . Allies Melted . | . . . . . . . . Intel | -11 -10 -10 -10 -9 -8 -7 -7 ------- Run | Scr Mat Min Exi Min Mat Fac Gar Robot Analysis Total 1 | . 1 . . . . . . Derelict Logs Recovered 2 | . . 1 . 1 . . . Drone Launches . | . . . . . . . . Drone Recoveries . | . . . . . . . . Exploration | -11 -10 -10 -10 -9 -8 -7 -7 ------------- Run | Scr Mat Min Exi Min Mat Fac Gar Turns Passed 4940 | 59 579 1046 1030 531 958 97 640 Spaces Moved 3160 | 43 438 616 848 273 553 75 314 Core 19 | 8 . . . . 1 . 10 Treads . | . . . . . . . . Legs 3114 | 35 438 616 848 273 552 75 277 Wheels . | . . . . . . . . Hover 27 | . . . . . . . 27 Flight . | . . . . . . . . Fastest Speed 50 | 50 120 120 120 120 123 120 50 Average Speed 123 | 113 120 120 120 143 134 121 114 Slowest Speed 650 | 150 120 120 120 150 650 122 126 Overloaded Moves . | . . . . . . . . Propulsion Burnouts . | . . . . . . . . Robots Hopped . | . . . . . . . . Cave-ins Triggered . | . . . . . . . . Exploration Rate (%) 52 | 3 66 96 92 72 44 3 44 Regions Visited 7 Branch Regions 3 Pre-discovered Areas . | . . . . . . . . Known Exits Taken 1 | . . . . . . 1 . Unknown Exits Taken 6 | 1 1 1 1 1 1 . . Scrap Searched . | . . . . . . . . Spaces Dug 9 | . . . 9 . . . . Terrain Destroyed 140 | . . 28 21 21 2 . 68 Melee . | . . . . . . . . Projectile 14 | . . . . 8 2 . 4 AOE 126 | . . 28 21 13 . . 64 Terrain Rammed . | . . . . . . . . Walls Destroyed . | . . . . . . . . Machines Disabled . | . . . . . . . . Actions | -11 -10 -10 -10 -9 -8 -7 -7 --------- Run | Scr Mat Min Exi Min Mat Fac Gar Total 3859 | 50 489 865 857 352 709 80 457 Wait 338 | . 35 197 5 19 74 . 8 Move 3154 | 42 437 615 847 272 552 75 314 Hop . | . . . . . . . . Pick Up 35 | 2 7 1 1 7 11 2 4 Fast Attach 35 | 6 3 3 . 3 10 . 10 Attach 21 | . . 1 . 2 7 2 9 Detach 4 | . . . . 1 2 . 1 Swap 29 | . . 2 2 4 7 1 13 Drop 52 | . 5 6 . 8 17 . 16 Fire 175 | . 2 40 2 36 29 . 66 Melee . | . . . . . . . . Ram . | . . . . . . . . Kick . | . . . . . . . . Crush . | . . . . . . . . Escape Stasis 6 | . . . . . . . 6 Rewire 10 | . . . . . . . 10 Trap . | . . . . . . . . Miscellaneous . | . . . . . . . . Route ------- -11/Scrapyard -10/Materials (discovered 3 exits: [*Mat x2] / [*Min]) -10/Mines (discovered 3 exits: [*Mat x2] / *Exi) -10/Exiles (discovered 2 exits: *Min x2) -9/Mines (discovered 2 exits: *Mat x2) -8/Materials -7/Factory -7/Garrison History --------- Turn | Location | Event 14 | -11/Scrapyard | Discovered new exit (range 15) 60 | -11/Scrapyard | Entered Materials 290 | -10/Materials | Discovered new exit (range 10) 311 | -10/Materials | Build established: Mutant 481 | -10/Materials | Discovered new exit (range 15) 570 | -10/Materials | Discovered new exit (range 14) 639 | -10/Materials | Entered Mines 641 | -10/Mines | Joined a pair of Derelicts in attacking an 0b10 outpost 714 | -10/Mines | Discovered new exit (range 15) 860 | -10/Mines | Discovered new exit (range 10) 1145 | -10/Mines | Received a Rocket Launcher from a helpful Derelict 1167 | -10/Mines | Deemed a non-threat by the Exiles lab entrance 1169 | -10/Mines | Discovered new exit (range 5) 1685 | -10/Mines | Entered Exiles 1685 | -10/Exiles | Found Exiles lab abandoned 1931 | -10/Exiles | Build established: Scavenger-Mutant 2091 | -10/Exiles | Discovered new exit (range 10) 2569 | -10/Exiles | Discovered new exit (range 14) 2715 | -10/Exiles | Entered Mines 2782 | -9/Mines | Assembled infested the area 2787 | -9/Mines | Assisted by a Guerilla fighting off Assembled 2837 | -9/Mines | Destroyed 7 combat bots 2862 | -9/Mines | A weapon hastily lodged in a ceiling crevice suddenly fell to the ground 2954 | -9/Mines | Discovered new exit (range 8) 3100 | -9/Mines | Build established: Mutant 3141 | -9/Mines | Met a Derelict who couldn't figure out how to use a Trap Extractor 3183 | -9/Mines | Discovered new exit (range 5) 3246 | -9/Mines | Entered Materials 3246 | -8/Materials | Accompanied by 1 ally 3246 | -8/Materials | Evolved 4 slots: Power x1, Propulsion x1, Weapon x2 3490 | -8/Materials | Repaired Fission Core 4170 | -8/Materials | Build established: Scavenger-Gunner 4180 | -8/Materials | Discovered new exit (range 16) 4204 | -8/Materials | Entered Factory 4204 | -7/Factory | Evolved 2 slots: Propulsion x1, Utility x1 4286 | -7/Factory | Identified exit to Garrison 4301 | -7/Factory | Entered Garrison 4307 | -7/Garrison | Installed Relay Interface Framework 4432 | -7/Garrison | Lost 3 parts (1u2w) 4468 | -7/Garrison | Triggered checkpoint 4558 | -7/Garrison | Phase Generator disabled 4569 | -7/Garrison | Garrison Relay disabled 4844 | -7/Garrison | Triggered checkpoint 4928 | -7/Garrison | Lost 17 parts (2p7n4u4w) 4941 | -7/Garrison | Self-destructed Last Messages --------------- 04886_ Stasis field depleted. 04888_ Acquired Autogun. 04888_ S-27 Virus destroyed. 04889_ Imp. Cooling System destroyed. 04889_ Rnf. Deuterium Engine destroyed. 04891_ Carbon-fiber Leg destroyed. 04893_ Mak. Leg destroyed. 04897_ Carbon-fiber Leg destroyed. 04902_ Acquired Hover Unit. 04916_ Acquired Particle Gun. 04921_ Acquired 21 matter. 04922_ Acquired 25 matter. 04925_ System corrupted: Heat flow error (+210). 04928_ S-27 Virus destroyed. 04928_ Switching to secondary target: S-27 Virus. 04934_ S-27 Virus destroyed. 04934_ Switching to secondary target: G-47 Trooper. 04934_ Particle Gun destroyed. 04936_ Hover Unit destroyed. 04938_ Autogun destroyed. Map ----- +----------------------------------------------------+ | #???????????????????????????? | | [ ????????????????????????? | | !==#### ## #???????????????????????????? | | ### ##[%##?????# #???????????????????????????? | | ??# ##=%#??????# #???????????????????????????? | | ??#### ##%*#??????# #????????#####??????????????? | | ?????# ##=%##### ## #????????# = #??????????????? | | ?????# =%^=[ ## #???###### = ####???????????? | | ?????#### =##### #???# * ???????????? | | ????????# #??????# #???# ######### ###?????????? | | ????????# ######## #???# #???????#!#"#?????????? | | ????????# ! ##### #???????# ! #?????????? | | ????????# #???????#=! #?????????? | | ????????# ######### #######???????#!!"#?????????? | | ????????# #???????# #?????????????#!#"#?????????? | | ????????#[#???????# #?????????????# ###?????????? | | ????????#%#???????# #?????????????#+#???????????? | | ????????#=#???????# #####?????????# #???????????? | | ????????#!#???????# #?????????#!#######?????? | | ????????#/#???????#= ##!!#?????????#*# ## ###???? | | ????????#%#???????#% ##!!#????????## ##??? | | ????????# #???????# #####???????## ##?? | | ????????#=#???????# #???????????## #?? | | ????????#*#???????# ############# # ##? | | ????????#*#???????# ggg ! = # #? | | ??????###=#???????# *=g=/@= # #? | | ??????# # ##??????#+#####dddd## "# | | ??????#==%=######## #???####### ## | | ??????#%[*!%= #?????????## # #? | | ??????##"=[##########?????????#" " ##? | | ??????# !! #?????????????????#" " #?? | | ??????# #?????????????????#" "# "#?? | | ??????# ####?????????????????#"""## # # ###?? | | ??????# #????????????????????######## # ###???? | | ??????####???????????????????????????#######?????? | | ?????????????????????????????????????????????????? | | ?????????????????????????????????????????????????? | | ?????????????????????????????????????????????????? | | ?????????????????????????????????????????????????? | | ?????????????????????????????????????????????????? | | ?????????????????????????????????????????????????? | | ?????????????????????????????????????????????????? | | ?????????????????????????????????????????????????? | | ?????????????????????????????????????????????????? | | ?????????????????????????????????????????????????? | | ?????????????????????????????????????????????????? | | | | | | | | | +----------------------------------------------------+ Best States ------------- Heat Dissipation 61 Energy Generation 31 Energy Capacity 480 Matter Stores 300 Matter Capacity 300 Sight Range 16 Robot Scan Range 13 Terrain Scan Density 10 Resistance: KI 20 Resistance: TH 20 Resistance: EX 20 Resistance: EM 20 Resistance: I 20 Resistance: S 20 Resistance: P 20 Evasion (%) 53 Particle Charging 15 Offensive Hacking 10 Item Schematics ----------------- Carbon-fiber Leg | -8/Materials | Scanalyzed Imp. EM Pulse Cannon | -8/Materials | Scanalyzed Imp. Heat Sink | -8/Materials | Scanalyzed Robot Schematics ------------------ None Fabricated ------------ Nothing Alien Tech Used ----------------- None Achievements -------------- None Challenges ------------ None Game ------ Seed GuidanceArchitectMegatreads Manual? 0 Play Time 00:43:48 Cumulative 143.3 hours Start 2021.06.25 @ 20:08:58 End 2021.06.25 @ 20:56:31 Sessions 1 Manual Loads 0 Difficulty Adventurer Special Mode None Game No. 35 Rogue 0 Adventurer 35 Explorer 0 Win Type - Total 2 Types 2/0/0/0/0/0/0/0/0 Lore% 33 Gallery% 54 Achievement% 52 Wizard Run 0 Options --------- ASCII 0 Keyboard 0 Movement Mouse Keybinds 0 Fullscreen 1 Font 24/Proggy Map View 130x56 Tactical HUD 1 Map Filters NONE Filters NONE Steam 1 RUN: d1454e04-7f40-4faf-a3e5-6aa312281a0a